Cogmind - Beta 11.1 @@@ ROGUE MODE // 2022.06.05 @ 13:42:50 Player: Plexion Result: Destroyed by as-82824 with Assembled Rifle Performance ------------- Evolutions (0) 0 Regions Visited (2) 400 Robots Destroyed (22) 110 Value Destroyed (411) 411 Prototype IDs (0) 0 Alien Tech Used (0) 0 Bonus (-57) -57 TOTAL SCORE: 864 Bonus ------- Friendly Fire -57 Cogmind --------- Core Integrity 0/250 Matter 300/300 Energy 96/100 System Corruption 0% Temperature Cool (2) Movement Treading (240) Ox1 Location -10/Mines Parts ------- > --- POWER (1) -------- (None) > --- PROPULSION (2) --- Light Treads Light Treads > --- UTILITY (2) ------ High-capacity Storage Unit > --- WEAPON (2) ------- Light Assault Rifle > --- INVENTORY (20) --- Light Treads Cooling System Cooling System Small Storage Unit Signal Interpreter Medium Armor Plating Medium Armor Plating Medium Armor Plating Hacking Suite Grenade Launcher Peak State ------------ > --- POWER ------------ Light Ion Engine > --- PROPULSION ------- Wheel Wheel > --- UTILITY ---------- High-capacity Storage Unit Medium Armor Plating > --- WEAPON ----------- Assault Rifle Assault Rifle > --- INVENTORY -------- Light Treads Light Treads Light Treads Cooling System Cooling System Small Storage Unit Signal Interpreter Medium Armor Plating Medium Armor Plating Medium Armor Plating Hacking Suite Light Assault Rifle Grenade Launcher [Rating: 10] Favorites ----------- Power Ion Engine Engine Ion Engine Propulsion Wheel Treads Light Treads Wheel Wheel Utility High-capacity Storage Unit Storage High-capacity Storage Unit Protection Medium Armor Plating Weapon Assault Rifle Ballistic Gun Assault Rifle Launcher Grenade Launcher Build | -11 -10 -10 ------- Run | Scr Mat Min Slots Evolved . | . . . Power . | . . . Propulsion . | . . . Utility . | . . . Weapon . | . . . Parts Attached 19 | 7 5 7 Power 3 | 2 1 . Engine 3 | 2 1 . Core . | . . . Reactor . | . . . Propulsion 8 | 2 2 4 Treads 5 | 2 . 3 Leg . | . . . Wheel 3 | . 2 1 Hover . | . . . Flight . | . . . Utility 3 | 1 2 . Device . | . . . Storage 2 | 1 1 . Processor . | . . . Hackware . | . . . Protection 1 | . 1 . Artifact . | . . . Weapon 5 | 2 . 3 Energy Gun . | . . . Energy Cannon . | . . . Ballistic Gun 4 | 2 . 2 Ballistic Cannon . | . . . Launcher 1 | . . 1 Special Weapon . | . . . Impact Weapon . | . . . Slashing Weapon . | . . . Piercing Weapon . | . . . Special Melee Weapon . | . . . Unidentified Prototypes . | . . . Parts Lost 8 | . 1 7 Power 2 | . 1 1 Propulsion 3 | . . 3 Utility 1 | . . 1 Weapon 2 | . . 2 Highest Loss Streak 5 | . 1 5 To Critical Strikes . | . . . Average Slot Usage (%) 94 | . 93 96 Engine 13 | . 14 12 Treads 9 | . 12 4 Wheel 18 | . 15 23 Storage 14 | . 14 14 Protection 9 | . 8 12 Ballistic Gun 27 | . 28 26 Naked Turns . | . . . Heaviest Build 56 | 14 56 54 Greatest Support 40 | 40 40 40 Greatest Overweight (x) 5 | . 2 5 Average Overweight (x) 1 | . 1 2 Largest Inventory Capacity 20 | 8 20 20 Average Capacity 15 | 6 14 20 Most Carried 13 | 4 13 13 Average Carried 9 | 1 9 12 Final Capacity 20 | 8 20 20 Final Carried 12 | 4 12 10 Class Distribution -------------------- 100% | Mutant Dominant Class ---------------- Mutant | -10/Materials Mutant | -10/Mines Resources | -11 -10 -10 ----------- Run | Scr Mat Min Matter Collected 686 | 219 318 149 Remotely . | . . . Salvage Created 666 | . 507 159 Parts 57 | . 44 13 Haulers Intercepted 2 | . 2 . Recyclers Shooed . | . . . Parts Field Recycled . | . . . Retrieved Matter . | . . . Parts Self-Destructed . | . . . Prevented . | . . . Kills | -11 -10 -10 ------- Run | Scr Mat Min Combat Hostiles Destroyed 14 | . 9 5 Guns 11 | . 9 2 AOE 3 | . . 3 Classes Destroyed 8 | . 7 1 Worker 1 | . 1 . Builder 1 | . 1 . Tunneler 2 | . 1 1 Hauler 2 | . 2 . Operator 1 | . . 1 Watcher 1 | . 1 . Swarmer 6 | . 3 3 Grunt 8 | . 6 2 Best Kill Streak 4 | . 4 3 Combat Bots Only 3 | . 3 3 Max Kills in Single Turn 2 | . 2 2 Gunslinging . | . . . Exploded 2 | . . 2 Melee . | . . . Uniques/NPCs Destroyed . | . . . Combat | -11 -10 -10 -------- Run | Scr Mat Min Damage Taken 1106 | . 382 724 Core 250 | . 57 193 Absorbed by Shields . | . . . Core Remaining (%) 100 | 100 . . Volleys Fired 57 | . 37 20 Largest 2 | . 2 2 Hottest 40 | . 40 40 Shots Fired 111 | . 74 37 Gun 108 | . 74 34 Cannon . | . . . Launcher 3 | . . 3 Special . | . . . Kinetic 108 | . 74 34 Thermal . | . . . Explosive 3 | . . 3 Electromagnetic . | . . . Robot Hit Streak 9 | . 7 9 Robot Miss Streak 3 | . 2 3 Penetration Max . | . . . Secondary Targets 1 | . 1 . Max Gunslinging Chain 1 | . 1 . Shots Hit Robots 70 | . 50 20 Core Hits 34 | . 25 9 Critical Kills . | . . . Critical Parts Destroyed . | . . . Critical Strikes . | . . . Melee Attacks . | . . . Impact . | . . . Slashing . | . . . Piercing . | . . . Sneak Attacks . | . . . Combat Hostiles . | . . . Follow-up Attacks . | . . . Damage Inflicted 1054 | . 638 416 Guns 861 | . 638 223 Cannons . | . . . Explosions 193 | . . 193 Melee . | . . . Ramming . | . . . Kinetic 861 | . 638 223 Thermal . | . . . Explosive 193 | . . 193 Electromagnetic . | . . . Impact . | . . . Slashing . | . . . Piercing . | . . . Highest Corruption . | . . . Average Corruption . | . . . Corruption Purged . | . . . Corruption Blocked . | . . . Overload Shots . | . . . Overflow Damage 14 | . . 14 Projectiles . | . . . Explosions 14 | . . 14 Melee . | . . . Knockbacks . | . . . Impact . | . . . Kinetic . | . . . Secondary . | . . . Self-Inflicted Damage . | . . . Shots . | . . . Rammed . | . . . Targets Rammed . | . . . Kicked . | . . . Crushed . | . . . Highest Temperature 18 | . 5 18 Average Temperature 5 | . 2 6 Received Heat Transfer 328 | . 171 157 Siege Activations . | . . . Robots Corrupted . | . . . Combat Hostiles . | . . . Parts Fried . | . . . Impact Corruptions . | . . . Robots Melted . | . . . Combat Hostiles . | . . . Parts Melted . | . . . Heat Transferred . | . . . Parts Sabotaged . | . . . Parts Stolen . | . . . Parts Stripped . | . . . Power Chain Reactions . | . . . Missiles Intercepted . | . . . Alert | -11 -10 -10 ------- Run | Scr Mat Min Peak Influence 266 | . 266 249 Initial 69 | . . 69 Average 111 | . 126 110 Maximum Alert Level 1 | . 1 1 Low Security (%) 80 | 100 76 81 Level 1 19 | . 23 18 Level 2 . | . . . Level 3 . | . . . Level 4 . | . . . Level 5 . | . . . High Security . | . . . Max Security . | . . . Squads Dispatched 1 | . 1 . Investigation . | . . . Extermination . | . . . Reinforcement 1 | . 1 . Assault . | . . . Garrison . | . . . Intercept . | . . . Searches Triggered . | . . . Construction Impeded . | . . . Haulers Reinforced . | . . . Active Scanning Responses . | . . . Cargo Convoy Interrupts . | . . . Stealth | -11 -10 -10 --------- Run | Scr Mat Min Distress Signals 2 | . 2 . Communications Jammed . | . . . Distress Signals . | . . . Times Spotted 37 | . 17 20 Peak Tracking Total 16 | . 5 16 Tactical Retreats 4 | . 2 2 Traps | -11 -10 -10 ------- Run | Scr Mat Min Traps Triggered 1 | . 1 . Indirectly . | . . . Trap Hack Attempts . | . . . Triggered . | . . . Disarmed . | . . . Reprogrammed . | . . . Reused . | . . . Traps Extracted . | . . . Installed . | . . . Triggered . | . . . Machines | -11 -10 -10 ---------- Run | Scr Mat Min Machines Disabled . | . . . Max in Single Turn . | . . . Machines Sabotaged . | . . . Garrisons Compromised . | . . . Overloaded Fab Kills . | . . . Hacking | -11 -10 -10 --------- Run | Scr Mat Min Machines Accessed 2 | . 2 . Terminals 2 | . 2 . Fabricators . | . . . Repair Stations . | . . . Recycling Units . | . . . Scanalyzers . | . . . Garrison Access . | . . . Total Hacks 7 | . 7 . Successful 5 | . 5 . Failed 2 | . 2 . Catastrophic . | . . . Database Lockouts . | . . . Manual 7 | . 7 . Terminals 7 | . 7 . Fabricators . | . . . Repair Stations . | . . . Recycling Units . | . . . Scanalyzers . | . . . Garrison Access . | . . . Terminal Hacks 2 | . 2 . Robot Analysis 2 | . 2 . Fabricator Hacks . | . . . Repair Station Hacks . | . . . Recycling Unit Hacks . | . . . Scanalyzer . | . . . Garrison Access Hacks . | . . . Unauthorized Hacks 3 | . 3 . Terminals 3 | . 3 . Assimilate 1 | . 1 . Botnet 1 | . 1 . Disrupt 1 | . 1 . Fabricators . | . . . Repair Stations . | . . . Recycling Units . | . . . Scanalyzers . | . . . Garrison Access . | . . . Data Cores Recovered . | . . . Used . | . . . Hacking Detections 2 | . 2 . Full Trace Events . | . . . Feedback Events . | . . . Feedback Blocked . | . . . Robot Schematics Acquired . | . . . Robots Built . | . . . Authchips . | . . . Time . | . . . Total Robot Build Rating . | . . . Part Schematics Acquired . | . . . Parts Built . | . . . Authchips . | . . . Time . | . . . Total Part Build Rating . | . . . Parts Repaired . | . . . Time . | . . . Parts Recycled . | . . . Recycled Matter . | . . . Retrieved Matter . | . . . Retrieved Components . | . . . Parts Scanalyzed . | . . . Part Schematics Acquired . | . . . Parts Damaged . | . . . Bothacking | -11 -10 -10 ------------ Run | Scr Mat Min Used RIF Installer . | . . . Robots Hacked . | . . . Non-combat . | . . . Combat . | . . . Robot Hacks Applied . | . . . Relay Couplers Released . | . . . Fabnet Peak Effective % . | . . . Robots Rewired . | . . . Allies Hacked . | . . . Hacks Repelled . | . . . Allies | -11 -10 -10 -------- Run | Scr Mat Min Total Allies 1 | . 1 . Largest Group 1 | . 1 1 Highest-Rated Group 10 | . 10 10 Highest-Rated Ally 10 | . 10 10 Total Orders . | . . . Ally Attacks . | . . . Total Damage . | . . . Kills . | . . . Allies Corrupted . | . . . Allies Melted . | . . . Intel | -11 -10 -10 ------- Run | Scr Mat Min Robot Analysis Total 2 | . 2 . Derelict Logs Recovered 1 | . . 1 Drone Launches . | . . . Drone Recoveries . | . . . Exploration | -11 -10 -10 ------------- Run | Scr Mat Min Turns Passed 1191 | 89 693 409 Spaces Moved 732 | 49 423 260 Core 2 | 2 . . Treads 193 | 47 135 11 Legs . | . . . Wheels 537 | . 288 249 Hover . | . . . Flight . | . . . Fastest Speed 50 | 50 110 110 Average Speed 126 | 155 125 121 Slowest Speed 240 | 160 160 240 Overloaded Moves . | . . . Propulsion Burnouts . | . . . Robots Hopped . | . . . Cave-ins Triggered . | . . . Exploration Rate (%) 46 | 5 77 56 Regions Visited 2 Branch Regions 1 Pre-discovered Areas . | . . . Known Exits Taken . | . . . Unknown Exits Taken 2 | 1 1 . Scrap Searched 1 | . . 1 Spaces Dug . | . . . Terrain Destroyed 30 | . . 30 Melee . | . . . Projectile . | . . . AOE 30 | . . 30 Terrain Rammed . | . . . Walls Destroyed . | . . . Machines Disabled . | . . . Actions | -11 -10 -10 --------- Run | Scr Mat Min Total 886 | 58 510 318 Wait 60 | . 31 29 Move 730 | 48 422 260 Hop . | . . . Pick Up 16 | 3 12 1 Fast Attach 8 | 6 1 1 Attach 5 | . 1 4 Detach 1 | . . 1 Swap 6 | 1 3 2 Drop 3 | . 3 . Fire 57 | . 37 20 Melee . | . . . Ram . | . . . Kick . | . . . Crush . | . . . Escape Stasis . | . . . Rewire . | . . . Trap . | . . . Miscellaneous . | . . . Route ------- -11/Scrapyard -10/Materials (discovered 3 exits: *Mat x2 / [*Min]) -10/Mines (discovered 1 exit: Mat) History --------- Turn | Location | Event 2 | -11/Scrapyard | Met Revision 17 10 | -11/Scrapyard | Discovered new exit (range 14) 90 | -11/Scrapyard | Entered Materials 176 | -10/Materials | Discovered new exit (range 13) 300 | -10/Materials | Build established: Mutant 559 | -10/Materials | Discovered new exit (range 4) 768 | -10/Materials | Discovered new exit (range 13) 783 | -10/Materials | Entered Mines 783 | -10/Mines | Accompanied by 1 ally 1143 | -10/Mines | Assembled infested the area 1148 | -10/Mines | Assisted by a Guerilla fighting off Assembled 1151 | -10/Mines | Identified exit to Materials 1155 | -10/Mines | Core integrity fell below 50% 1167 | -10/Mines | Core integrity fell below 20% 1192 | -10/Mines | Destroyed by as-82824 with Assembled Rifle Last Messages --------------- 01165_ Assault Rifle destroyed. 01165_ Wheel destroyed. 01167_ as-90589 destroyed. 01167_ CF-O9S(h) destroyed. 01167_ D-53 Grenadier destroyed. 01168_ The unstable cave ceiling collapses. 01168_ K-01 Serf collects debris. 01168_ Lgt. Ion Engine destroyed. 01169_ as-89154 destroyed. 01169_ as-81427 destroyed. 01169_ as-17898 destroyed. 01171_ The unstable cave ceiling collapses. 01171_ K-01 Serf collects debris. 01171_ as-25857 destroyed. 01172_ D-53 Grenadier destroyed. 01173_ The unstable cave ceiling collapses. 01175_ K-01 Serf collects debris. 01178_ The unstable cave ceiling collapses. 01178_ Acquired 71 matter. 01179_ K-01 Serf collects debris. Map ----- +----------------------------------------------------+ | ?????????????????????????????????????????????????? | | ?????????????????????????????????????????????????? | | ?????????????????????????????????????????????????? | | ?????????????????????????????????????????????????? | | ?????????????????????????????????????????????????? | | ?????????????????????????????????????????????????? | | ?????????????????????????????????????????????????? | | ?????????????????????????????????????????????????? | | ?????????????????????????????????????????????????? | | ?????????????????????????????????????????????????? | | ?????????????????????????????????????????????????? | | ?????????????????????????????????????????????????? | | ?????????????????????????????????????????????????? | | ?????????????????????????????????????????????????? | | ?????????????????????????##??????????????????????? | | ?????????????#######????? ??????????????????????? | | ?????????##### # ##???? #??#???????????????????? | | ????????## #???# #? #???????????????????? | | ????????# ##### #? #???????????????????? | | ????????# ## #???????????????????? | | ???????# % aa ##??????????????????? | | ??????# % ## ### #??????????????????? | | ?????# ##a #??????????????????? | | ???# % # ### a ###??????????????????? | | ### #### ##????????????????????? | | # ##?# @##?????????????????????? | | ?# # #??????????????????????? | | ?## # ## ??????????????????????? | | ??####?# # ###?# ##### #?????????????????????? | | ???????## ##????# #???#### ?????????????????????? | | ????????# #?????# #??????? ????????????????????? | | ????????# #?????# #??????? ????????????????????? | | ????????# #?????# #???????? ???????????????????? | | ??????### ####??? #???????? ##??????????????????? | | ?????## # # #??? ???????< #???????????????????? | | ?????# # # ##?? ?????????? ???????????????????? | | ?????# # # #?????????????? ???????????????????? | | ?????## ##??????????????? ??????????????????? | | ?????## #???????????????? ??????????????####? | | ?????# #??????????????????????????????## ## | | ?###?# ##?????????????????????????????# # | | ? ?### ##????????????????????????????# # | | ?# ???### ##??????????????????????????## # | | ?# ?????# #?????????????????????###### # | | ?# ?????### #????????????????????## # | | ?# #??????# ##????????????????????# #? | | ?# #?????## ##????????????????????# ##? | | ?# #????## ###???#####??????????## ### #?? | | ?# ###### ##?## ##??????????## ##?# #?? | | ?# ### ###?????????## #??# #?? | +----------------------------------------------------+ Best States ------------- Heat Dissipation 25 Energy Generation 10 Energy Capacity 250 Matter Stores 300 Matter Capacity 300 Sight Range 16 Terrain Scan Density 10 Armor Coverage 225 Evasion (%) 40 Recoil Reduction 2 Item Schematics ----------------- None Robot Schematics ------------------ None Fabricated ------------ Nothing Alien Tech Used ----------------- None Achievements -------------- None Challenges ------------ None Game ------ Seed AnalysisHeatTreads Manual? 0 Play Time 00:09:15 Cumulative 241.5 hours Start 2022.06.05 @ 13:35:57 End 2022.06.05 @ 13:42:50 Sessions 1 Manual Loads 0 Difficulty Rogue Special Mode None Game No. 339 Rogue 252 Adventurer 87 Explorer 0 Win Type - Total 5 Types 3/0/1/1/0/0/0/0/0 Lore% 70 Gallery% 77 Achievement% 67 Wizard Run 0 Options --------- ASCII 0 Keyboard 1 Movement Numpad Keybinds 0 Fullscreen 1 Font 18/Smallcaps Map View 76x50 Tactical HUD 1 Map Filters NONE Filters NONE Steam 1 RUN: b85bfb73-6d14-488c-8f91-b5c011c3c128